bitfinex-derivatives/quotes_SOLF0:USTF0_20250626
["timestamp","ask_amount","ask_price","bid_price","bid_amount"]
[1750964532833,35.48,141.82,141.76,4.57381423]
[1750964533233,40.05381423,141.82,141.75,35.48]
[1750964533427,40.05381423,141.82,141.72,35.48]
[1750964533428,4.57381423,141.78,141.72,35.48]
[1750964533628,4.57381423,141.74,141.68,4.57381423]
[1750964533831,4.57381423,141.74,141.68,7.0556]
[1750964534033,4.57381423,141.74,141.67,35.48]
[1750964534234,7.0545,141.71,141.67,35.48]
[1750964534431,7.0545,141.71,141.68,7.0555]
[1750964534631,4.57381423,141.74,141.67,35.48]
[1750964534834,4.57381423,141.74,141.68,7.0556]
[1750964535033,35.48,141.75,141.68,4.57381423]
[1750964535437,7.0539,141.72,141.68,4.57381423]
[1750964535639,35.48,141.75,141.7,4.57381423]
[1750964535934,7.0535,141.73,141.7,11.62811423]
[1750964536431,7.0537,141.72,141.7,11.62811423]
[1750964537330,7.0537,141.72,141.7,4.57381423]
[1750964537534,7.0534,141.73,141.7,4.57381423]
[1750964538034,7.0534,141.73,141.7,11.62811423]
[1750964538233,9.45341423,141.77,141.63,5.0078]
[1750964538234,4.57381423,141.75,141.63,5.0078]
[1750964538431,5.18691124,141.74,141.67,4.57381423]
[1750964538643,7.0543,141.71,141.68,7.0554]
[1750964539436,11.76967995,141.77,141.68,35.48]
[1750964539737,9.76870596,141.76,141.69,4.57381423]
[1750964539935,7.0535,141.73,141.7,7.0544]
[1750964540142,7.0535,141.73,141.69,4.57381423]
[1750964540744,7.0528,141.74,141.71,7.0539]
[1750964541238,7.0528,141.74,141.71,4.57381423]
[1750964541442,4.46677058,141.79,141.73,4.57381423]
[1750964541639,9.41069909,141.81,141.75,4.57381423]
[1750964541844,7.0505,141.79,141.75,11.62561423]
[1750964542144,9.41069909,141.81,141.75,4.57381423]
[1750964542335,12.19071929,141.8,141.75,4.57381423]
[1750964542536,2.3588,141.81,141.75,4.57381423]
[1750964542845,7.0506,141.79,141.76,7.0515]
[1750964543945,4.84527431,141.81,141.75,4.57381423]
[1750964544338,2.3588,141.81,141.75,4.57381423]
[1750964544538,7.0507,141.78,141.75,11.62561423]
[1750964545849,11.86114173,141.81,141.8,7.0497]
[1750964545850,4.9285275,141.81,141.8,7.0497]
[1750964546140,9.34281423,141.89,141.8,4.57381423]
[1750964546443,7.0465,141.87,141.83,7.0479]
[1750964546840,7.43173348,141.88,141.82,4.57381423]
[1750964547055,4.769,141.89,141.84,4.57381423]
[1750964547739,4.769,141.89,141.82,4.57381423]
[1750964547740,6.93890695,141.88,141.82,4.57381423]
[1750964547937,4.769,141.89,141.82,4.57381423]
[1750964548138,4.769,141.89,141.84,7.0475]
[1750964548139,7.046,141.88,141.84,7.0475]
[1750964548846,11.8145,141.89,141.86,7.0467]
[1750964549047,4.769,141.89,141.84,4.57381423]
[1750964549548,4.769,141.89,141.85,7.0469]
[1750964550151,2.4082,141.89,141.86,11.62041423]
[1750964550846,2.50207776,141.91,141.87,7.0462]
[1750964551046,11.92493582,141.92,141.86,4.57381423]
[1750964551243,6.96050015,141.91,141.86,4.57381423]
[1750964551445,6.95898421,141.91,141.86,4.57381423]
[1750964552051,7.046,141.88,141.86,4.57381423]
[1750964553250,7.0454,141.89,141.86,4.57381423]
[1750964553451,4.57381423,141.92,141.86,4.57381423]
[1750964554250,7.0457,141.89,141.86,4.57381423]
[1750964554455,7.0457,141.89,141.86,11.62051423]
[1750964554652,7.0449,141.9,141.86,11.62051423]
[1750964554857,42.48671423,141.93,141.86,4.57381423]
[1750964555251,42.48671423,141.93,141.86,11.62031423]
[1750964555556,50.01113203,141.93,141.86,11.62031423]
[1750964555750,42.48671423,141.93,141.86,11.62031423]
[1750964556950,44.98404225,141.93,141.86,11.62031423]
[1750964557153,42.48671423,141.93,141.86,11.62031423]
[1750964557553,7.0453,141.89,141.86,11.62031423]
[1750964557958,42.48671423,141.93,141.86,4.57381423]
[1750964558155,7.0462,141.87,141.85,35.96]
[1750964559055,4.57381423,141.91,141.77,7.1675]
[1750964559251,4.57381423,141.89,141.82,11.62221423]
[1750964559454,40.53381423,141.89,141.82,11.62221423]
[1750964559758,40.53381423,141.89,141.77,7.1675]
[1750964559759,4.57381423,141.85,141.77,4.57381423]
[1750964559961,4.57381423,141.83,141.77,4.57381423]
[1750964560148,7.0495,141.81,141.78,7.0504]
[1750964561860,4.57381423,141.83,141.77,11.62471423]
[1750964562462,7.0497,141.8,141.77,11.62471423]
[1750964563556,7.0494,141.81,141.78,7.0507]
[1750964564764,7.0489,141.82,141.79,7.0501]
[1750964565362,7.0484,141.83,141.8,7.0496]
[1750964568965,35.96,141.84,141.82,7.0484]
[1750964569172,35.96,141.84,141.81,4.57381423]
[1750964569374,35.96,141.87,141.81,4.57381423]
[1750964569575,7.0475,141.85,141.82,7.0484]
[1750964569873,35.96,141.87,141.82,7.0484]
[1750964570074,7.0476,141.85,141.82,7.0484]
[1750964571762,7.047,141.86,141.83,7.0482]
[1750964571968,35.96,141.87,141.79,35.96]
[1750964572271,7.047,141.86,141.83,11.62181423]
[1750964572471,35.96,141.87,141.83,4.57381423]
[1750964572665,4.8432,141.88,141.84,7.0473]
[1750964572971,7.0465,141.87,141.84,7.0473]
[1750964574965,7.0468,141.86,141.84,7.0473]
[1750964575166,7.0468,141.86,141.83,11.62191423]
[1750964576169,7.0475,141.85,141.82,7.0485]
[1750964576370,9.41701423,141.88,141.81,4.57381423]
[1750964576774,7.0477,141.85,141.82,7.0487]
[1750964577277,7.0464,141.87,141.84,7.0475]
[1750964578076,7.0464,141.87,141.83,4.57381423]
[1750964578077,7.046,141.88,141.85,7.0472]
[1750964579376,7.0464,141.87,141.83,40.53381423]
[1750964579873,7.0464,141.87,141.83,35.96]
[1750964580073,7.0464,141.87,141.84,11.62101423]
[1750964580276,7.0464,141.87,141.84,4.57381423]
[1750964580676,7.0464,141.87,141.85,7.0472]
[1750964581771,7.0464,141.87,141.84,11.62131423]
[1750964582278,42.97581423,141.9,141.83,35.96]
[1750964582471,4.7484,141.89,141.83,35.96]
[1750964582871,7.0474,141.85,141.83,35.96]
[1750964587782,7.0477,141.84,141.83,35.96]
[1750964587984,2.52000101,141.88,141.83,35.96]
[1750964588186,2.52000101,141.87,141.83,35.96]
[1750964588375,7.0474,141.85,141.83,35.96]
[1750964591381,4.57381423,141.87,141.8,40.39381423]
[1750964591581,2.52318053,141.86,141.8,40.39381423]
[1750964591890,7.0482,141.83,141.81,7.0489]
[1750964592184,7.0482,141.83,141.8,40.39381423]
[1750964592387,7.0489,141.82,141.8,35.82]
[1750964592591,4.57381423,141.81,141.77,8.69316002]
[1750964592888,7.0507,141.78,141.76,7.0515]
[1750964593085,7.0507,141.78,141.75,8.69316002]
[1750964593285,4.57381423,141.81,141.74,4.57381423]
[1750964593482,4.57381423,141.81,141.74,13.26697425]
[1750964593683,7.0507,141.79,141.74,13.26697425]
[1750964593886,7.0507,141.79,141.74,4.57381423]
[1750964594085,4.57381423,141.81,141.73,44.51316002]
[1750964594483,40.39381423,141.82,141.74,4.57381423]
[1750964594788,40.39381423,141.82,141.74,13.26697425]
[1750964595178,7.05,141.8,141.76,4.57381423]
[1750964595380,40.39381423,141.82,141.76,4.57381423]
[1750964595381,35.82,141.82,141.76,4.57381423]
[1750964595683,7.05,141.8,141.77,7.051]
[1750964595878,35.82,141.82,141.77,7.051]
[1750964596489,7.0501,141.8,141.77,7.051]
[1750964598384,7.0502,141.79,141.77,7.051]
[1750964598584,7.0502,141.79,141.76,11.62521423]
[1750964599489,7.0502,141.79,141.77,7.0512]
[1750964600706,7.0509,141.78,141.74,13.26697425]
[1750964601004,7.0509,141.78,141.74,4.57381423]
[1750964601206,7.0509,141.78,141.75,7.0521]
[1750964601806,7.0514,141.77,141.74,7.0525]
[1750964602208,40.78516438,141.82,141.73,40.39381423]
[1750964602209,40.39381423,141.82,141.73,40.39381423]
[1750964602506,40.39381423,141.82,141.76,7.0514]
[1750964602906,7.0506,141.79,141.76,7.0514]
[1750964603295,40.39381423,141.82,141.76,7.0514]
[1750964604007,7.0505,141.79,141.76,7.0514]
[1750964604405,40.39381423,141.82,141.74,8.69316002]
[1750964604406,40.39381423,141.82,141.77,7.0509]
[1750964604608,7.05,141.8,141.77,7.0509]
[1750964605103,7.05,141.8,141.75,4.57381423]
[1750964605411,7.05,141.8,141.78,7.0506]
[1750964606207,7.05,141.8,141.77,7.0509]
[1750964606608,7.0503,141.79,141.77,7.0509]
[1750964606909,2.501953,141.81,141.75,35.82]
[1750964607209,7.0508,141.78,141.75,7.0518]
[1750964608808,7.0513,141.77,141.74,7.0525]
[1750964609709,7.0513,141.77,141.75,7.0522]
[1750964611397,7.0509,141.78,141.75,7.0522]
[1750964611599,2.3615,141.8,141.75,7.0522]
[1750964613709,7.0509,141.78,141.75,7.0522]
[1750964616512,7.0513,141.77,141.75,7.0522]
[1750964621416,2.3615,141.8,141.74,11.62631423]
[1750964621812,7.0518,141.76,141.74,11.62631423]
[1750964622809,2.3615,141.8,141.74,11.62631423]
[1750964622810,6.93531423,141.8,141.74,11.62631423]
[1750964623006,2.49413215,141.79,141.72,40.39381423]
[1750964623316,35.66,141.78,141.72,40.39381423]
[1750964623516,35.66,141.78,141.74,7.0526]
[1750964623910,7.0519,141.76,141.74,7.0526]
[1750964624616,40.23381423,141.78,141.71,13.26697425]
[1750964624819,40.23381423,141.78,141.71,4.57381423]
[1750964625312,7.0525,141.75,141.71,4.57381423]
[1750964625517,40.23381423,141.78,141.71,4.57381423]
[1750964625723,7.052,141.76,141.73,7.0529]
[1750964625914,7.052,141.76,141.73,11.62671423]
[1750964626806,40.23381423,141.78,141.7,13.26697425]
[1750964627012,44.91051423,141.78,141.7,4.57381423]
[1750964627208,44.91051423,141.78,141.71,7.0542]
[1750964627914,2.49761318,141.77,141.71,7.0542]
[1750964628215,44.91051423,141.78,141.7,11.62821423]
[1750964628517,7.0534,141.73,141.7,11.62821423]
[1750964628718,4.57381423,141.76,141.69,42.715]
[1750964629116,4.57381423,141.76,141.69,7.055]
[1750964629313,14.1065,141.73,141.62,13.20098632]
[1750964629618,45.16248114,141.72,141.63,4.5644908]
[1750964629820,7.0552,141.7,141.65,7.0569]
[1750964630009,7.0552,141.7,141.65,11.61964615]
[1750964630212,7.0554,141.69,141.65,11.61964615]
[1750964630413,42.66214615,141.72,141.65,11.61964615]
[1750964630609,42.66214615,141.72,141.65,4.56274615]
[1750964631820,42.66214615,141.72,141.65,11.61964615]
[1750964632122,42.66214615,141.72,141.65,4.56274615]
[1750964632123,7.055,141.7,141.65,4.56274615]
[1750964632322,7.055,141.7,141.66,7.0563]
[1750964632919,38.1194,141.72,141.66,7.0563]
[1750964634622,7.0555,141.69,141.66,7.0563]
[1750964636722,7.0555,141.69,141.66,7.0564]
[1750964639522,7.0555,141.69,141.67,7.0561]
[1750964640322,7.0544,141.71,141.67,4.56274615]
[1750964640522,35.68,141.74,141.69,4.56274615]
[1750964640825,7.054,141.72,141.69,11.61764615]
[1750964641024,7.054,141.72,141.69,4.56274615]
[1750964641530,7.0543,141.71,141.69,11.61764615]
[1750964641827,35.68,141.74,141.69,11.61764615]
[1750964642224,7.0539,141.72,141.69,11.61764615]
[1750964644927,35.68,141.74,141.68,7.0554]
[1750964645428,7.0539,141.72,141.69,7.0549]
[1750964646427,7.0542,141.71,141.69,7.0549]
[1750964646830,35.68,141.74,141.69,7.0549]
[1750964647423,7.0539,141.72,141.69,7.0549]
[1750964647929,7.0544,141.71,141.68,7.0555]
[1750964648324,35.68,141.74,141.67,40.24274615]
[1750964648523,7.0543,141.71,141.69,7.0552]
[1750964648927,7.0543,141.71,141.67,40.24274615]
[1750964649226,7.0554,141.69,141.67,35.68]
[1750964649430,4.56274615,141.73,141.64,40.64274615]
[1750964649632,4.56274615,141.73,141.67,7.0559]
[1750964649930,7.0549,141.7,141.67,7.0559]
[1750964650318,7.0549,141.7,141.66,4.56274615]
[1750964650522,7.0544,141.71,141.68,7.0556]
[1750964651133,7.0547,141.7,141.67,7.0559]
[1750964651431,7.0547,141.7,141.66,4.56274615]
[1750964652035,7.0547,141.7,141.67,7.0561]
[1750964652933,7.0547,141.7,141.68,7.0556]
[1750964653934,7.0547,141.7,141.67,7.0559]
[1750964654136,7.0556,141.69,141.67,7.0559]
[1750964654434,40.24274615,141.74,141.67,7.0559]
[1750964654635,40.24274615,141.74,141.68,7.0556]
[1750964655434,7.0545,141.71,141.68,7.0556]
[1750964655825,35.68,141.74,141.69,7.0548]
[1750964656029,35.68,141.74,141.66,4.56274615]
[1750964656229,4.56274615,141.71,141.64,36.08]
[1750964656433,4.56274615,141.69,141.64,36.08]
[1750964656628,4.56274615,141.69,141.62,20.25733247]
[1750964656831,4.56274615,141.67,141.62,20.25948632]
[1750964657033,4.56274615,141.67,141.62,7.0585]
[1750964657234,4.56274615,141.67,141.61,36.08]
[1750964657426,4.56274615,141.67,141.63,7.0579]
[1750964657827,7.0571,141.66,141.63,7.0579]
[1750964658339,4.56274615,141.67,141.61,43.1389]
[1750964658540,4.56274615,141.67,141.61,36.08]
[1750964660141,7.0574,141.65,141.62,7.0584]
[1750964660943,7.0577,141.64,141.61,43.1389]
[1750964661147,7.0577,141.64,141.61,7.0589]
[1750964664545,7.0577,141.64,141.62,7.0586]
[1750964666248,7.0577,141.64,141.61,7.0589]
[1750964666549,7.0577,141.64,141.6,4.56274615]
[1750964667046,7.0577,141.64,141.61,7.0591]
[1750964667250,7.0577,141.64,141.6,4.56274615]
[1750964667443,7.0577,141.64,141.62,7.0584]
[1750964667840,7.0582,141.63,141.6,4.56274615]
[1750964668250,7.0582,141.63,141.61,7.0589]
[1750964669344,7.0582,141.63,141.62,7.0587]
[1750964669740,7.0579,141.64,141.62,7.0587]
[1750964671849,7.0574,141.65,141.62,7.0587]
[1750964672249,7.0574,141.65,141.6,13.31967488]
[1750964673452,7.0574,141.65,141.62,7.0583]
[1750964675252,7.0574,141.65,141.63,7.0581]
[1750964676554,43.1369,141.66,141.63,7.0581]
[1750964680258,38.176,141.69,141.62,4.56274615]
[1750964680448,38.176,141.69,141.64,4.56274615]
[1750964680951,38.176,141.69,141.65,7.0569]
[1750964681449,7.0558,141.68,141.65,7.0569]
[1750964681651,38.176,141.69,141.65,7.0569]
[1750964682057,7.0563,141.67,141.64,7.0574]
[1750964682460,4.56274615,141.68,141.62,44.57692873]
[1750964682658,4.56274615,141.68,141.62,35.82]
[1750964682957,7.0574,141.65,141.63,7.0581]
[1750964684851,7.0577,141.64,141.62,35.82]
[1750964685066,4.56274615,141.64,141.59,8.75692873]
[1750964685360,7.059,141.62,141.59,7.0601]
[1750964685662,9.41384615,141.64,141.57,13.31967488]
[1750964685866,7.0592,141.61,141.58,7.0604]
[1750964686354,7.0592,141.61,141.57,13.31967488]
[1750964686557,7.0592,141.61,141.58,7.0606]
[1750964686764,7.0592,141.61,141.57,13.31967488]
[1750964687150,7.0592,141.61,141.58,7.0606]
[1750964688055,7.0597,141.6,141.57,15.81782873]
[1750964688561,4.56274615,141.62,141.56,44.57692873]
[1750964689063,7.0595,141.61,141.58,7.0606]
[1750964692067,7.0597,141.6,141.58,7.0606]
[1750964695559,7.0602,141.59,141.57,15.81792873]
[1750964695755,7.0602,141.59,141.55,13.31967488]
[1750964696361,7.0602,141.59,141.56,7.0614]
[1750964696963,7.0602,141.59,141.57,7.061]
[1750964697168,7.0599,141.6,141.57,7.061]
[1750964697573,7.0599,141.6,141.58,7.0605]
[1750964697771,7.0599,141.6,141.56,8.75692873]
[1750964698165,7.0599,141.6,141.57,7.0609]
[1750964699372,7.0603,141.59,141.57,7.0609]
[1750964700368,7.0599,141.6,141.57,7.0609]
[1750964700567,2.45761358,141.63,141.59,4.56274615]
[1750964700767,4.8511,141.64,141.59,4.56274615]
[1750964700768,4.8511,141.64,141.59,13.31967488]
[1750964700967,7.0589,141.62,141.59,20.37937488]
[1750964701265,7.0589,141.62,141.59,13.31967488]
[1750964702471,7.0584,141.63,141.59,13.31967488]
[1750964702866,35.82,141.66,141.6,8.75692873]
[1750964703262,7.0574,141.65,141.62,7.0584]
[1750964703868,639.8843,141.69,141.63,4.56274615]
[1750964704072,675.7043,141.69,141.63,4.56274615]
[1750964704762,7.0564,141.67,141.65,7.0569]
[1750964705472,7.0559,141.68,141.66,7.0567]
[1750964707169,35.66,141.7,141.67,4.56274615]
[1750964707369,40.4551,141.73,141.67,4.56274615]
[1750964707662,7.0545,141.71,141.68,7.0556]
[1750964708064,7.0538,141.72,141.69,7.055]
[1750964708266,9.35784615,141.73,141.67,4.56274615]
[1750964708667,7.0549,141.7,141.67,11.61864615]
[1750964709376,7.0544,141.71,141.68,7.0557]
[1750964709772,4.7951,141.73,141.67,4.56274615]
[1750964710166,7.0545,141.71,141.67,11.61844615]
[1750964710373,7.0545,141.71,141.67,4.56274615]
[1750964710870,7.0545,141.71,141.68,7.0556]
[1750964711371,7.0548,141.7,141.67,11.61874615]
[1750964711573,7.0548,141.7,141.67,4.56274615]
[1750964712275,7.0548,141.7,141.67,11.61864615]
[1750964712572,7.03042504,141.72,141.65,35.66]
[1750964712876,4.56274615,141.72,141.65,42.7169]
[1750964713076,7.0556,141.69,141.65,35.66]
[1750964713277,7.0556,141.69,141.66,7.0567]
[1750964714068,7.0557,141.68,141.66,7.0567]
[1750964714265,7.0557,141.68,141.65,42.717]
[1750964716683,7.08824615,141.72,141.65,35.66]
[1750964716877,4.56274615,141.7,141.65,35.66]
[1750964717078,4.56274615,141.68,141.62,35.64]
[1750964717276,7.0576,141.65,141.62,42.6984]
[1750964718174,7.06144615,141.68,141.62,35.64]
[1750964718385,7.058,141.64,141.61,11.62144615]
[1750964718981,4.56274615,141.64,141.58,8.75692873]
[1750964719179,4.56274615,141.62,141.56,44.39692873]
[1750964719384,7.0594,141.61,141.58,7.0606]
[1750964719579,4.56274615,141.62,141.58,7.0606]
[1750964719885,7.0593,141.61,141.58,7.0604]
[1750964720174,4.56274615,141.62,141.56,44.39692873]
[1750964720376,7.0609,141.58,141.55,7.0619]
[1750964720581,4.56274615,141.6,141.52,8.75692873]
[1750964721583,7.0614,141.57,141.51,13.31967488]
[1750964721786,7.0614,141.57,141.52,8.75692873]
[1750964722386,7.0614,141.57,141.53,7.0629]
[1750964722583,7.0617,141.56,141.53,7.0629]
[1750964722981,4.56274615,141.6,141.53,7.0629]
[1750964723181,4.56274615,141.56,141.51,8.75692873]
[1750964723379,40.20274615,141.56,141.5,38.1387]
[1750964723583,47.26474615,141.56,141.5,42.70144615]
[1750964723885,40.20274615,141.56,141.5,42.70144615]
[1750964725183,7.0625,141.55,141.52,7.0636]
[1750964725986,4.56274615,141.58,141.52,4.56274615]
[1750964726389,7.0619,141.56,141.53,7.0629]
[1750964726685,4.56274615,141.58,141.52,4.56274615]
[1750964726889,4.56274615,141.58,141.55,7.0621]
[1750964727285,11.62364615,141.58,141.55,7.0621]
[1750964727593,4.56274615,141.58,141.52,4.56274615]
[1750964727887,7.0615,141.57,141.54,7.0624]
[1750964728384,35.66,141.59,141.52,4.56274615]
[1750964729277,7.0614,141.57,141.54,7.0624]
[1750964732098,7.0614,141.57,141.52,4.56274615]
[1750964732496,35.66,141.59,141.52,4.56274615]
[1750964732698,35.66,141.59,141.54,7.0626]
[1750964733178,35.66,141.59,141.53,7.0629]
[1750964733382,4.56274615,141.58,141.5,42.70144615]
[1750964733681,7.0624,141.55,141.5,42.70144615]
[1750964734077,7.0624,141.55,141.52,7.0634]
[1750964734296,7.0624,141.55,141.5,42.70144615]
[1750964734495,7.0624,141.55,141.52,7.0633]
[1750964735090,7.0628,141.54,141.52,7.0633]
[1750964735593,7.0625,141.55,141.52,7.0633]
[1750964736491,7.0618,141.56,141.5,42.70144615]
[1750964737086,7.0618,141.56,141.53,7.0628]
[1750964737387,7.0618,141.56,141.5,42.70144615]
[1750964738189,7.0618,141.56,141.53,7.0627]
[1750964738999,4.8453,141.61,141.54,4.56274615]
[1750964739295,40.5453,141.61,141.54,4.56274615]
[1750964739499,45.10804615,141.61,141.52,4.56274615]
[1750964740293,7.061,141.58,141.52,4.56274615]
[1750964740494,45.10804615,141.61,141.52,4.56274615]
[1750964740996,45.10804615,141.61,141.54,4.56274615]
[1750964740997,40.5453,141.61,141.54,4.56274615]
[1750964741393,4.56274615,141.6,141.52,4.56274615]
[1750964741797,7.0609,141.58,141.55,7.0617]
[1750964742000,7.0609,141.58,141.52,4.56274615]
[1750964742493,45.10804615,141.61,141.56,7.0614]
[1750964743197,7.0604,141.59,141.57,7.061]
[1750964743397,45.10804615,141.61,141.52,4.56274615]
[1750964743594,4.56274615,141.59,141.52,4.56274615]
[1750964743792,7.0617,141.56,141.54,7.0625]
[1750964744693,4.56274615,141.59,141.5,42.70144615]
[1750964744992,4.56274615,141.57,141.5,42.70144615]
[1750964745295,4.56274615,141.57,141.52,7.0634]
[1750964745296,7.0625,141.55,141.52,7.0634]
[1750964745497,7.0625,141.55,141.5,42.70144615]
[1750964745691,40.26274615,141.57,141.5,42.70144615]
[1750964746085,7.0626,141.55,141.52,7.0633]
[1750964746489,40.26274615,141.57,141.52,7.0633]
[1750964746687,7.0632,141.53,141.51,7.0639]
[1750964746889,4.56274615,141.55,141.48,4.56274615]
[1750964747095,35.7,141.57,141.48,4.56274615]
[1750964747298,4.56274615,141.55,141.48,4.56274615]
[1750964747897,35.7,141.57,141.47,35.7]
[1750964747898,4.56274615,141.53,141.47,35.7]
[1750964748198,35.7,141.52,141.44,4.56274615]
[1750964748394,7.0649,141.5,141.46,7.0664]
[1750964748585,7.0649,141.5,141.44,4.56274615]
[1750964748793,35.7,141.52,141.46,4.56274615]
[1750964749294,4.6854,141.54,141.46,4.56274615]
[1750964749494,2.4058,141.58,141.52,4.56274615]
[1750964749693,7.0619,141.56,141.54,7.0624]
[1750964749897,2.4058,141.58,141.54,4.56274615]
[1750964750100,2.4392,141.6,141.54,4.56274615]
[1750964750400,2.4392,141.6,141.56,7.0614]
[1750964750401,7.0607,141.58,141.56,7.0614]
[1750964750587,2.4392,141.6,141.56,7.0614]
[1750964750903,2.4392,141.6,141.55,4.56274615]
[1750964751196,2.4392,141.6,141.57,7.0608]
[1750964751797,35.7,141.61,141.55,35.7]
[1750964752098,42.956,141.64,141.57,4.56274615]
[1750964752392,7.0594,141.61,141.58,7.0604]
[1750964755500,7.0598,141.6,141.57,11.62374615]
[1750964755702,4.56274615,141.63,141.57,4.56274615]
[1750964756198,42.956,141.64,141.53,2.4452]
[1750964756199,4.56274615,141.59,141.53,4.56274615]
[1750964756403,4.56274615,141.59,141.51,40.26274615]
[1750964756590,7.062,141.56,141.51,40.26274615]
[1750964756793,2.471,141.58,141.51,40.26274615]
[1750964756994,4.781,141.58,141.51,40.26274615]
[1750964757297,7.0621,141.56,141.52,7.0633]
[1750964757503,4.781,141.58,141.52,7.0633]
[1750964758001,4.781,141.58,141.51,47.32664615]
[1750964758405,7.0624,141.55,141.51,40.26274615]
[1750964758702,4.781,141.58,141.52,7.0636]
[1750964759796,7.0626,141.55,141.52,7.0636]
[1750964760498,7.0627,141.54,141.51,47.32664615]
[1750964760698,4.56274615,141.57,141.49,6.90034615]
[1750964760906,4.56274615,141.55,141.49,6.90034615]
[1750964761306,7.0632,141.53,141.5,7.0643]
[1750964761703,4.56274615,141.55,141.49,15.65727488]
[1750964762006,4.56274615,141.55,141.49,7.0648]
[1750964762400,7.0639,141.52,141.49,7.0648]
[1750964762701,4.56274615,141.53,141.48,8.75692873]
[1750964762899,4.56274615,141.53,141.46,4.56274615]
[1750964763095,4.56274615,141.53,141.46,13.31967488]
[1750964763298,7.01249782,141.55,141.47,8.75692873]
[1750964763604,4.56274615,141.55,141.47,8.75692873]
[1750964763806,4.56274615,141.55,141.48,4.56274615]
[1750964764113,4.56274615,141.55,141.48,49.01967488]
[1750964765201,7.0634,141.53,141.5,7.0643]
[1750964765809,7.0638,141.52,141.49,7.0649]
[1750964766012,4.56274615,141.55,141.48,44.45692873]
[1750964766313,4.56274615,141.53,141.48,44.45692873]
[1750964766511,4.56274615,141.53,141.48,35.7]
[1750964766814,7.0642,141.51,141.48,42.7653]
[1750964767106,7.065,141.5,141.47,7.066]
[1750964767509,38.2816,141.52,141.45,11.28262873]
[1750964768116,38.2816,141.52,141.47,7.0658]
[1750964769026,7.0647,141.5,141.47,7.0658]
[1750964769414,38.2816,141.52,141.48,7.0656]
[1750964769726,38.2816,141.52,141.46,8.75692873]
[1750964769927,38.2816,141.52,141.48,7.0655]
[1750964770422,7.0642,141.51,141.48,7.0655]
[1750964770816,7.065,141.5,141.47,7.0659]
[1750964771818,7.0652,141.49,141.47,7.0659]
[1750964774023,7.0657,141.48,141.46,7.0663]
[1750964774328,7.0657,141.48,141.45,4.56274615]
[1750964774517,42.84434615,141.52,141.45,4.56274615]
[1750964774720,4.56274615,141.48,141.44,8.75692873]
[1750964774919,40.56274615,141.48,141.41,170.53815276]
[1750964775122,36.0,141.48,141.42,13.31967488]
[1750964775730,7.0669,141.46,141.42,4.56274615]
[1750964776132,7.0669,141.46,141.43,7.0679]
[1750964776428,40.56274615,141.48,141.41,175.10089891]
[1750964776629,40.56274615,141.48,141.41,49.31967488]
[1750964776824,43.0658,141.48,141.43,4.56274615]
[1750964777030,43.0658,141.48,141.45,7.0667]
[1750964777233,7.0658,141.48,141.45,7.0667]
[1750964777629,7.0662,141.47,141.45,7.0667]
[1750964777832,40.7691,141.51,141.45,7.0667]
[1750964778529,7.066,141.48,141.45,7.0667]
[1750964779342,7.0662,141.47,141.45,7.0667]
[1750964779835,7.0657,141.48,141.46,7.0666]
[1750964780628,7.0662,141.47,141.45,7.0669]
[1750964781833,7.0659,141.48,141.45,7.0669]
[1750964782837,4.56274615,141.5,141.44,7.0674]
[1750964783534,4.56274615,141.5,141.43,7.068]
[1750964783836,4.56274615,141.48,141.41,8.75692873]
[1750964784029,7.0676,141.45,141.4,44.75692873]
[1750964784536,7.0676,141.45,141.42,7.0685]
[1750964784737,7.0676,141.44,141.42,7.0685]
[1750964784936,36.0,141.47,141.42,7.0685]
[1750964785740,36.0,141.47,141.41,7.0689]
[1750964785940,36.0,141.47,141.4,36.0]
[1750964786235,7.0678,141.44,141.4,36.0]
[1750964787139,7.0682,141.43,141.41,7.069]
[1750964787538,7.0679,141.44,141.41,7.069]
[1750964787732,4.56274615,141.46,141.41,7.069]